Cogmind - Beta 13 @@@ ROGUE MODE // 2024.05.05 @ 21:05:48 Player: A Foxgirl OwO Result: Destroyed by S-27 Virus with Autogun Performance ------------- Evolutions (3) 1500 Regions Visited (7) 1400 Robots Destroyed (22) 110 Value Destroyed (802) 802 Prototype IDs (35) 700 Alien Tech Used (0) 0 Bonus (300) 300 TOTAL SCORE: 4812 Bonus ------- Aligned with FarCom 300 Cogmind --------- Core Integrity 0/700 Matter 240/300 Energy 98/100 System Corruption 2% Temperature Cool (0) Movement Core (50) Location -7/Storage Parts ------- > --- POWER (2) -------- (None) > --- PROPULSION (4) --- (None) > --- UTILITY (5) ------ Hacking Suite > --- WEAPON (2) ------- (None) > --- INVENTORY (5) ---- Transmission Jammer Weapon Shielding Heavy Assault Rifle Missile Launcher Rocket Array Peak State ------------ > --- POWER ------------ Light Ion Engine Deuterium Engine > --- PROPULSION ------- Flight Unit Improved Flight Unit Cesium-ion Thruster Cesium-ion Thruster > --- UTILITY ---------- Small Storage Unit Hardened Light Armor Plating Hacking Suite System Shield System Restoration Module > --- WEAPON ----------- Light Assault Rifle Autogun > --- INVENTORY -------- Advanced Targeting Computer Transmission Jammer Weapon Shielding Heavy Assault Rifle Heavy Assault Rifle Missile Launcher Rocket Array Mace [Rating: 32] Favorites ----------- Power Ion Engine Engine Ion Engine Propulsion Light Treads Treads Light Treads Flight Unit Cesium-ion Thruster Utility Small Storage Unit Device Improved Heat Sink Storage Small Storage Unit Processor Improved Signal Interpreter Hackware System Shield Protection Weapon Shielding Weapon Light Assault Rifle Energy Cannon EM Pulse Cannon Ballistic Gun Light Assault Rifle Build | -11 -10 -10 -10 -9 -8 -7 -7 ------- Run | Yrd Mat Min Exi Min Mat Fac Sto Slots Evolved 6 | . . . . . 4 2 . Power 1 | . . . . . . 1 . Propulsion 2 | . . . . . 2 . . Utility 3 | . . . . . 2 1 . Weapon . | . . . . . . . . Parts Attached 35 | 6 1 . . . 22 5 1 Power 4 | 1 . . . . 1 1 1 Engine 4 | 1 . . . . 1 1 1 Core . | . . . . . . . . Reactor . | . . . . . . . . Propulsion 10 | 2 . . . . 8 . . Treads 6 | 2 . . . . 4 . . Leg . | . . . . . . . . Wheel . | . . . . . . . . Hover . | . . . . . . . . Flight 4 | . . . . . 4 . . Utility 14 | 1 1 . . . 8 4 . Device 5 | . 1 . . . 3 1 . Storage 1 | 1 . . . . . . . Processor 1 | . . . . . 1 . . Hackware 3 | . . . . . 1 2 . Protection 4 | . . . . . 3 1 . Artifact . | . . . . . . . . Weapon 7 | 2 . . . . 5 . . Energy Gun . | . . . . . . . . Energy Cannon 2 | . . . . . 2 . . Ballistic Gun 5 | 2 . . . . 3 . . Ballistic Cannon . | . . . . . . . . Launcher . | . . . . . . . . Special Weapon . | . . . . . . . . Impact Weapon . | . . . . . . . . Slashing Weapon . | . . . . . . . . Piercing Weapon . | . . . . . . . . Special Melee Weapon . | . . . . . . . . Unidentified Prototypes 1 | . . . . . . . 1 Parts Lost 17 | . . . . . 6 . 11 Power 2 | . . . . . 1 . 1 Propulsion 7 | . . . . . 3 . 4 Utility 6 | . . . . . 2 . 4 Weapon 2 | . . . . . . . 2 Highest Loss Streak 8 | . . . . . 4 . 8 To Critical Strikes . | . . . . . . . . Average Slot Usage (%) 92 | . 90 100 100 100 93 92 55 Engine 9 | . 14 14 14 14 8 7 3 Treads 21 | . 28 28 28 28 26 . . Flight 7 | . . . . . 4 30 15 Device 9 | . 4 14 14 14 10 7 3 Storage 9 | . 14 14 14 14 9 7 6 Processor 2 | . . . . . 3 . . Hackware 7 | . . . . . 6 15 18 Protection 3 | . . . . . 4 6 . Energy Cannon 4 | . . . . . 8 . . Ballistic Gun 15 | . 28 28 28 28 9 15 6 Naked Turns . | . . . . . . . . Heaviest Build 30 | 13 14 14 14 14 30 18 17 Greatest Support 80 | 40 40 40 40 40 80 19 19 Greatest Overweight (x) 3 | . . . . . 1 . 3 Average Overweight (x) . | . . . . . . . . Largest Inventory Capacity 8 | 8 8 8 8 8 8 8 8 Average Capacity 7 | 6 8 8 8 8 8 8 7 Most Carried 8 | 4 6 7 7 7 8 8 8 Average Carried 7 | 2 4 6 7 7 7 7 7 Final Capacity 8 | 8 8 8 8 8 8 8 5 Final Carried 8 | 4 6 7 7 7 7 8 5 Class Distribution -------------------- 57% | Mutant 16% | Hacker-Sprinter 16% | Skirmisher 6% | Sprinter Dominant Class ---------------- Mutant | -10/Materials Mutant | -10/Mines Mutant | -10/Exiles Skirmisher | -9/Mines Mutant | -8/Materials Hacker-Sprinter | -7/Factory Hacker-Mutant | -7/Storage Resources | -11 -10 -10 -10 -9 -8 -7 -7 ----------- Run | Yrd Mat Min Exi Min Mat Fac Sto Matter Collected 811 | 187 22 . . . 602 . . Remotely . | . . . . . . . . Salvage Created 943 | . 22 . . . 921 . . Parts 50 | . 3 . . . 47 . . Haulers Intercepted . | . . . . . . . . Recyclers Shooed 1 | . . . . . 1 . . Parts Field Recycled . | . . . . . . . . Retrieved Matter . | . . . . . . . . Parts Self-Destructed . | . . . . . . . . Prevented . | . . . . . . . . Kills | -11 -10 -10 -10 -9 -8 -7 -7 ------- Run | Yrd Mat Min Exi Min Mat Fac Sto Combat Hostiles Destroyed 18 | . . . . . 18 . . Guns 11 | . . . . . 11 . . Cannons 3 | . . . . . 3 . . AOE 3 | . . . . . 3 . . Classes Destroyed 6 | . 1 . . . 5 . . Operator 2 | . . . . . 2 . . Watcher 2 | . 1 . . . 1 . . Swarmer 3 | . . . . . 3 . . Grunt 11 | . . . . . 11 . . Duelist 1 | . . . . . 1 . . Sentry 3 | . . . . . 3 . . Best Kill Streak 3 | . 1 . . . 3 . . Combat Bots Only 3 | . . . . . 3 . . Max Kills in Single Turn 3 | . 1 . . . 3 . . Gunslinging . | . . . . . . . . Exploded 3 | . . . . . 3 . . Melee . | . . . . . . . . Uniques/NPCs Destroyed . | . . . . . . . . Combat | -11 -10 -10 -10 -9 -8 -7 -7 -------- Run | Yrd Mat Min Exi Min Mat Fac Sto Hostile Shots Fired 352 | . . . . . 132 1 219 Missed 132 | . . . . . 23 1 108 Damage Taken 2869 | . . . . . 1586 . 1283 Core 928 | . . . . . 217 . 711 Absorbed by Shields . | . . . . . . . . Redirected to Shielding 11 | . . . . . 11 . . Regen/Repaired (Parts) 5 | . . . . . 5 . . Core Remaining (%) 86 | 100 . . . 100 60 . . Volleys Fired 95 | . 5 . . . 79 7 4 Largest 2 | . 2 . . . 2 2 2 Hottest 138 | . 40 . . . 138 43 43 Shots Fired 187 | . 10 . . . 155 14 8 Gun 147 | . 10 . . . 115 14 8 Cannon 40 | . . . . . 40 . . Launcher . | . . . . . . . . Special . | . . . . . . . . Kinetic 147 | . 10 . . . 115 14 8 Thermal 13 | . . . . . 13 . . Explosive . | . . . . . . . . Electromagnetic 27 | . . . . . 27 . . Robot Hit Streak 18 | . 2 . . . 18 2 2 Robot Miss Streak 5 | . 3 . . . 2 2 5 Penetration Max . | . . . . . . . . Secondary Targets 3 | . . . . . 3 . . Max Gunslinging Chain 1 | . . . . . 1 . . Shots Hit Robots 132 | . 5 . . . 118 6 3 Core Hits 44 | . 2 . . . 39 1 2 Critical Kills . | . . . . . . . . Critical Parts Destroyed . | . . . . . . . . Critical Strikes . | . . . . . . . . Melee Attacks . | . . . . . . . . Impact . | . . . . . . . . Slashing . | . . . . . . . . Piercing . | . . . . . . . . Sneak Attacks . | . . . . . . . . Combat Hostiles . | . . . . . . . . Follow-up Attacks . | . . . . . . . . Damage Inflicted 2220 | . 50 . . . 2026 89 55 Guns 1374 | . 50 . . . 1180 89 55 Cannons 723 | . . . . . 723 . . Explosions 108 | . . . . . 108 . . Melee . | . . . . . . . . Ramming 15 | . . . . . 15 . . Kinetic 1374 | . 50 . . . 1180 89 55 Thermal 283 | . . . . . 283 . . Explosive . | . . . . . . . . Electromagnetic 548 | . . . . . 548 . . Impact . | . . . . . . . . Slashing . | . . . . . . . . Piercing . | . . . . . . . . Highest Corruption 2 | . . . . . . 2 2 Average Corruption 1 | . . . . . . 1 2 Corruption Purged 2 | . . . . . . 2 . Corruption Blocked . | . . . . . . . . Effects 2 | . . . . . . . 2 Matter Fused 1 | . . . . . . . 1 Energy Discharges 1 | . . . . . . . 1 Overload Shots . | . . . . . . . . Overflow Damage 9 | . . . . . 9 . . Projectiles . | . . . . . . . . Explosions 9 | . . . . . 9 . . Melee . | . . . . . . . . Knockbacks . | . . . . . . . . Impact . | . . . . . . . . Kinetic . | . . . . . . . . Secondary . | . . . . . . . . Self-Inflicted Damage 35 | . . . . . 35 . . Shots 1 | . . . . . 1 . . Rammed 5 | . . . . . 2 . 3 Targets Rammed 5 | . . . . . 2 . 3 Kicked . | . . . . . . . . Crushed . | . . . . . . . . Highest Temperature 180 | . . . . . 180 . . Average Temperature 40 | . . . . . 40 . . Received Heat Transfer 1032 | . . . . . 819 . 213 Siege Activations . | . . . . . . . . Robots Corrupted 1 | . . . . . 1 . . Combat Hostiles 1 | . . . . . 1 . . Parts Fried 3 | . . . . . 3 . . Impact Corruptions . | . . . . . . . . Robots Melted . | . . . . . . . . Combat Hostiles . | . . . . . . . . Parts Melted . | . . . . . . . . Heat Transferred 309 | . . . . . 309 . . Parts Sabotaged . | . . . . . . . . Parts Stolen . | . . . . . . . . Parts Stripped . | . . . . . . . . Power Chain Reactions 1 | . . . . . 1 . . Alert | -11 -10 -10 -10 -9 -8 -7 -7 ------- Run | Yrd Mat Min Exi Min Mat Fac Sto Peak Influence 215 | . 48 5 . . 215 140 111 Initial 63 | . . . . . . 6 63 Average 70 | . 25 4 . . 97 46 63 Maximum Alert Level 1 | . . . . . 1 . . Low Security (%) 95 | 100 100 100 . 100 92 100 100 Level 1 4 | . . . . . 7 . . Level 2 . | . . . . . . . . Level 3 . | . . . . . . . . Level 4 . | . . . . . . . . Level 5 . | . . . . . . . . High Security . | . . . . . . . . Max Security . | . . . . . . . . Squads Dispatched 3 | . . . . . 2 1 . Investigation . | . . . . . . . . Extermination . | . . . . . . . . Reinforcement 3 | . . . . . 2 1 . Assault . | . . . . . . . . Garrison . | . . . . . . . . Intercept . | . . . . . . . . Searches Triggered . | . . . . . . . . Construction Impeded . | . . . . . . . . Haulers Reinforced . | . . . . . . . . Active Scanning Responses . | . . . . . . . . Cargo Convoy Interrupts . | . . . . . . . . Stealth | -11 -10 -10 -10 -9 -8 -7 -7 --------- Run | Yrd Mat Min Exi Min Mat Fac Sto Distress Signals 3 | . . . . . 3 . . Communications Jammed . | . . . . . . . . Distress Signals . | . . . . . . . . Times Spotted 64 | . 4 . . . 31 11 18 Peak Tracking Total 13 | . 1 . . . 7 5 13 Tactical Retreats 7 | . . . . . 2 3 2 Traps | -11 -10 -10 -10 -9 -8 -7 -7 ------- Run | Yrd Mat Min Exi Min Mat Fac Sto Traps Triggered 4 | . . . . . . 4 . Indirectly . | . . . . . . . . Trap Hack Attempts . | . . . . . . . . Triggered . | . . . . . . . . Disarmed . | . . . . . . . . Reprogrammed . | . . . . . . . . Reused . | . . . . . . . . Traps Extracted . | . . . . . . . . Installed . | . . . . . . . . Triggered . | . . . . . . . . Machines | -11 -10 -10 -10 -9 -8 -7 -7 ---------- Run | Yrd Mat Min Exi Min Mat Fac Sto Machines Disabled . | . . . . . . . . Max in Single Turn . | . . . . . . . . Garrison Access 1 | . . . . . . 1 . Machines Repaired . | . . . . . . . . Machines Dismantled . | . . . . . . . . Machines Sabotaged . | . . . . . . . . Overloaded Fab Kills . | . . . . . . . . Hacking | -11 -10 -10 -10 -9 -8 -7 -7 --------- Run | Yrd Mat Min Exi Min Mat Fac Sto Machines Accessed 21 | . 1 1 1 . 9 8 1 Terminals 13 | . 1 1 . . 5 5 1 Fabricators . | . . . . . . . . Repair Stations 1 | . . . . . 1 . . Recycling Units 2 | . . . . . 2 . . Scanalyzers 3 | . . . . . 1 2 . Garrison Access 1 | . . . . . . 1 . Total Hacks 48 | . 6 3 1 . 22 14 2 Successful 22 | . 2 3 1 . 10 5 1 Failed 26 | . 4 . . . 12 9 1 Catastrophic 10 | . 1 . . . 5 4 . Database Lockouts . | . . . . . . . . Manual 22 | . 6 . 1 . 11 4 . Terminals 35 | . 6 3 . . 15 9 2 Fabricators . | . . . . . . . . Repair Stations 3 | . . . . . 3 . . Recycling Units 2 | . . . . . 2 . . Scanalyzers 6 | . . . . . 2 4 . Garrison Access 1 | . . . . . . 1 . Terminal Hacks 13 | . 2 3 1 . 4 2 1 Prototype ID Bank 5 | . 1 . . . 2 2 . Open Door 1 | . . . . . . . 1 Alert Level 1 | . . . . . 1 . . Unreport Threat 1 | . . . . . 1 . . Locate Traps 1 | . 1 . . . . . . Dispatch Records 1 | . . 1 . . . . . Patrol Status 1 | . . 1 . . . . . Zone Layout 1 | . . 1 . . . . . Derelict Proto ID Bank 1 | . . . 1 . . . . Fabricator Hacks . | . . . . . . . . Repair Station Hacks 2 | . . . . . 2 . . Scan Component 1 | . . . . . 1 . . Repair 1 | . . . . . 1 . . Recycling Unit Hacks 2 | . . . . . 2 . . Report Inventory 2 | . . . . . 2 . . Scanalyzer 4 | . . . . . 2 2 . Insert Component 3 | . . . . . 1 2 . Analyze 1 | . . . . . 1 . . Garrison Access Hacks 1 | . . . . . . 1 . Seal Access 1 | . . . . . . 1 . Unauthorized Hacks . | . . . . . . . . Terminals . | . . . . . . . . Fabricators . | . . . . . . . . Repair Stations . | . . . . . . . . Recycling Units . | . . . . . . . . Scanalyzers . | . . . . . . . . Garrison Access . | . . . . . . . . Data Cores Recovered 1 | . . . . . 1 . . Used . | . . . . . . . . Hacking Detections 13 | . 1 . . . 6 6 . Full Trace Events . | . . . . . . . . Feedback Events . | . . . . . . . . Feedback Blocked . | . . . . . . . . Robot Schematics Acquired . | . . . . . . . . Robots Built . | . . . . . . . . Authchips . | . . . . . . . . Time . | . . . . . . . . Total Robot Build Rating . | . . . . . . . . Part Schematics Acquired 1 | . . . . . 1 . . Parts Built . | . . . . . . . . Authchips . | . . . . . . . . Time . | . . . . . . . . Total Part Build Rating . | . . . . . . . . Parts Repaired 1 | . . . . . 1 . . Time 32 | . . . . . 32 . . Parts Recycled . | . . . . . . . . Recycled Matter . | . . . . . . . . Retrieved Matter . | . . . . . . . . Retrieved Components . | . . . . . . . . Parts Scanalyzed 2 | . . . . . 1 1 . Part Schematics Acquired 1 | . . . . . 1 . . Parts Damaged . | . . . . . . . . Bothacking | -11 -10 -10 -10 -9 -8 -7 -7 ------------ Run | Yrd Mat Min Exi Min Mat Fac Sto Used RIF Installer . | . . . . . . . . Robots Hacked . | . . . . . . . . Non-combat . | . . . . . . . . Combat . | . . . . . . . . Robot Hacks Applied . | . . . . . . . . Relay Couplers Released . | . . . . . . . . Fabnet Peak Effective % . | . . . . . . . . Robots Rewired . | . . . . . . . . Allies Hacked . | . . . . . . . . Hacks Repelled . | . . . . . . . . Allies | -11 -10 -10 -10 -9 -8 -7 -7 -------- Run | Yrd Mat Min Exi Min Mat Fac Sto Total Allies . | . . . . . . . . Largest Group . | . . . . . . . . Highest-Rated Group . | . . . . . . . . Highest-Rated Ally . | . . . . . . . . Total Orders . | . . . . . . . . Ally Attacks . | . . . . . . . . Total Damage . | . . . . . . . . Kills . | . . . . . . . . Allies Corrupted . | . . . . . . . . Allies Melted . | . . . . . . . . Intel | -11 -10 -10 -10 -9 -8 -7 -7 ------- Run | Yrd Mat Min Exi Min Mat Fac Sto Robot Analysis Total . | . . . . . . . . Derelict Logs Recovered 1 | . . . . 1 . . . Drone Launches . | . . . . . . . . Drone Recoveries . | . . . . . . . . Exploration | -11 -10 -10 -10 -9 -8 -7 -7 ------------- Run | Yrd Mat Min Exi Min Mat Fac Sto Turns Passed 4219 | 87 450 131 335 119 2271 639 187 Spaces Moved 2850 | 49 262 75 210 46 949 1007 252 Core 30 | 3 . . . . . . 27 Treads 1230 | 46 262 75 210 46 591 . . Legs . | . . . . . . . . Wheels . | . . . . . . . . Hover . | . . . . . . . . Flight 1590 | . . . . . 358 1007 225 Fastest Speed 28 | 50 160 160 160 160 28 28 28 Average Speed 86 | 153 160 160 160 160 111 28 44 Slowest Speed 250 | 160 160 160 160 160 163 28 250 Overloaded Moves . | . . . . . . . . Propulsion Burnouts . | . . . . . . . . Robots Hopped 9 | . . . . . 5 2 2 Cave-ins Triggered . | . . . . . . . . Exploration Rate (%) 32 | 4 39 20 60 18 57 31 29 Regions Visited 7 Branch Regions 4 Pre-discovered Areas . | . . . . . . . . Known Exits Taken 1 | . . . . . 1 . . Unknown Exits Taken 6 | 1 1 1 1 1 . 1 . Scrap Searched . | . . . . . . . . Spaces Dug . | . . . . . . . . Terrain Destroyed 8 | . . . . . 8 . . Melee . | . . . . . . . . Projectile 4 | . . . . . 4 . . AOE 4 | . . . . . 4 . . Terrain Rammed . | . . . . . . . . Walls Destroyed . | . . . . . . . . Machines Disabled . | . . . . . . . . Actions | -11 -10 -10 -10 -9 -8 -7 -7 --------- Run | Yrd Mat Min Exi Min Mat Fac Sto Total 4409 | 58 283 86 209 92 2011 1352 318 Wait 1343 | . 14 11 . 47 937 275 59 Move 2826 | 48 261 74 209 45 939 1002 248 Hop 8 | . . . . . 4 2 2 Pick Up 23 | 4 2 1 . . 11 5 . Fast Attach 26 | 6 1 . . . 14 4 1 Attach 6 | . . . . . 5 1 . Detach 1 | . . . . . . 1 . Swap 3 | . . . . . 3 . . Drop 25 | . . . . . 17 7 1 Fire 95 | . 5 . . . 79 7 4 Melee . | . . . . . . . . Ram 3 | . . . . . . . 3 Kick . | . . . . . . . . Crush 2 | . . . . . 2 . . Escape Stasis 48 | . . . . . . 48 . Rewire . | . . . . . . . . Trap . | . . . . . . . . Miscellaneous . | . . . . . . . . Route ------- -11/Scrapyard -10/Materials (discovered 3 exits: [*Mat] / *Min x2) -10/Mines -10/Exiles -9/Mines -8/Materials (discovered 2 exits: *Fac x2) -7/Factory (discovered 2 exits: *Sto / [*Low]) -7/Storage History --------- Turn | Location | Event 6 | -11/Scrapyard | Discovered new exit (range 15) 88 | -11/Scrapyard | Entered Materials 251 | -10/Materials | Discovered new exit (range 6) 317 | -10/Materials | Build established: Mutant 340 | -10/Materials | Discovered new exit (range 3) 354 | -10/Materials | Discovered new exit (range 16) 538 | -10/Materials | Entered Mines 580 | -10/Mines | Received a Rocket Launcher from a helpful Derelict 662 | -10/Mines | Deemed a non-threat by the Exiles lab entrance 662 | -10/Mines | Discovered new exit (range 5) 669 | -10/Mines | Entered Exiles 706 | -10/Exiles | Met 8R-AWN 735 | -10/Exiles | Met EX-HEX 783 | -10/Exiles | Met EX-BIN 802 | -10/Exiles | Aligned with FarCom system 804 | -10/Exiles | Given EX-Vault access code 841 | -10/Exiles | Opened EX-Vault 889 | -10/Exiles | Warned to stay clear of 0b10 Research branches 933 | -10/Exiles | Met EX-DEC 989 | -10/Exiles | Discovered new exit (range 11) 1004 | -10/Exiles | Entered Mines 1038 | -9/Mines | Learned 2 Materials zone layouts 1112 | -9/Mines | Discovered new exit (range 8) 1123 | -9/Mines | Entered Materials 1123 | -8/Materials | Evolved 4 slots: Propulsion x2, Utility x2 1124 | -8/Materials | Identified exit to Factory 1214 | -8/Materials | Found Prototype Launcher 1221 | -8/Materials | Found Powered Armor 1312 | -8/Materials | Build established: Skirmisher 1468 | -8/Materials | Repaired Visual Processing Unit 1586 | -8/Materials | Identified Rocket Array 2010 | -8/Materials | Build established: Mutant 3087 | -8/Materials | Lost 4 parts (1p2n1u) 3394 | -8/Materials | Entered Factory 3394 | -7/Factory | Evolved 2 slots: Power x1, Utility x1 3700 | -7/Factory | Build established: Hacker-Sprinter 3837 | -7/Factory | Discovered new exit (range 8) 3925 | -7/Factory | Discovered new exit (range 5) 4033 | -7/Factory | Entered Storage 4168 | -7/Storage | Lost 8 parts (1p3n2u2w) 4182 | -7/Storage | Core integrity fell below 50% 4215 | -7/Storage | Core integrity fell below 20% 4220 | -7/Storage | Destroyed by S-27 Virus with Autogun Last Messages --------------- S-27 Virus suffers critical hit (Destroy). System Restoration Module destroyed. Hacking Suite destroyed. T-07 Excavator is excavating. System corrupted: Matter fused (-10). T-07 Excavator is excavating. Connecting with Door Terminal... Current location identified: Storage >>Open(Door) Sealed Heavy Doors opened. Acquired Prototype Engine. Identified F-cell Engine. Slammed into Y-54 Guardian. Dropped F-cell Engine. System corrupted: Energy discharge (-39). Imp. Flight Unit destroyed. Sml. Storage Unit destroyed. System Shield destroyed. A-02 Transporter destroyed. R-06 Scavenger collects Rocket Array. Map ----- +----------------------------------------------------+ | ?????????????????????????????????????????????????? | | ???????????????????????????????????????????????### | | ?????????????????????????????????????########### | | ?????????????????????????????????????# = | | ?????????????????????????????????????# ###### | | ?????????????????????????????????????# #????## | | ?????????????????????????????????????# ##+#####?# | | ?????????????????????????????????????# # #?# | | ?????????????????????????????????????# # """ #?# | | ?????????????????????????????????????# + """ #?#^ | | ?????????????????????????????????????# # """ #?# | | ?????????????????????????????##+###### # #?# | | ????????????????Y????????????# Y + ! !#?#^ | | ?????????????????????????????# ##+########?# | | ?????????????????????????????+ # ????????# | | ?????????????????????????????# g # ! !! ### | | ?????????????????????????????+ g #!* + | | ?????????????????????????????# Y# #### | | ?????????????????????????????# ########?????# | | ?????????????????????????????# #????????????# | | ?????????????????????????????# ###??????????# | | ????????????????????????????## l ; "??????????# | | ?????##+#########+########### u # "??????????? | | ?????# u # "??????????? | | ?????# s #T#??????????? | | ?????# @ s ####?????????? | | ?????# ########+########### ## #####?????? | | ?????# #?# #???#= s # #?????? | | ?????# #?# #??#]gsgY # """" #?????? | | ?????# #?# """ """ ##??#% */# """" #?????? | | ?????# #?# """ """ #???#]= [ + """" #?????? | | ?????# #?# """ """ #???#= # """" #?????? | | ?????# #?############+#???# # #?????? | | ?????# #??????????????? ########?????? | | ?????# #??????????????#############????????????? | | ?????# +???????????????????????????????????????? | | ?????# #???????????????????????????????????????? | | ?????# #???????????????????????????????????????? | | ?????# #???????????????????????????????????????? | | ?????# #???????????????????????????????????????? | | ?????# #???????????????????????????????????????? | | ?????# #???????????????????????????????????????? | | ?????# #???????????????????????????????????????? | | ?????# #???????????????????????????????????????? | | ?????# #???????????????????????????????????????? | | ?????# #???????????????????????????????????????? | | ?????# #???????????????????????????????????????? | | ?????# #???????????????????????????????????????? | | ?????# #???????????????????????????????????????? | | ?????# #???????????????????????????????????????? | +----------------------------------------------------+ Best States ------------- Heat Dissipation 48 Energy Generation 19 Energy Capacity 500 Matter Stores 300 Matter Capacity 300 Sight Range 16 Robot Scan Range 15 Terrain Scan Density 10 Armor Coverage 225 Weapon Shielding 33 Evasion (%) 64 Recoil Reduction 8 Offensive Hacking 20 Defensive Hacking 10 Item Schematics ----------------- Rocket Array | -8/Materials | Scanalyzed Robot Schematics ------------------ None Fabricated ------------ Nothing Alien Tech Used ----------------- None Achievements -------------- Power Corrupts Challenges ------------ None Game ------ Seed ChromaticIonFlail Manual? 0 Play Time 00:42:59 Cumulative 22.2 hours Start 2024.05.05 @ 20:24:18 End 2024.05.05 @ 21:05:48 Sessions 1 Manual Loads 0 Difficulty Rogue Special Mode None Game No. 47 Rogue 47 Adventurer 0 Explorer 0 Win Type - Total 0 Types 0/0/0/0/0/0/0/0/0 Lore% 16 Gallery% 20 Achievement% 18 Wizard Run 0 Options --------- Layout 1 ASCII 0 Keyboard 0 Movement Mouse Keybinds 0 Fullscreen 0 Font 42/SmallcapsGlow Map View 59x39 Zoom Use 0% Tactical HUD 0 Map Filters NONE Filters NONE Steam 1 RUN: 48c4fd27-b09c-4343-a341-a71393fbef2d